bitfinex-derivatives/quotes_ETHF0:USTF0_20210407
["timestamp","ask_amount","ask_price","bid_price","bid_amount"]
[1617787136116,15.1165,2038.4,2036.4,6.05]
[1617787137218,15.1165,2038.4,2037.5,2.90695]
[1617787137817,15.1165,2038.4,2036.3,76.7344]
[1617787138418,15.1165,2038.4,2033.9,30.0]
[1617787138619,70.5766,2037.7,2033.7,78.5339]
[1617787138818,72.7687,2037.7,2033.7,78.5339]
[1617787139017,72.7687,2037.7,2033.8,30.0]
[1617787139217,2.90695,2036.9,2033.8,36.06]
[1617787139417,5.11175,2036.9,2033.8,36.06]
[1617787139827,2.2048,2036.9,2033.8,36.06]
[1617787140220,12.8289,2038.4,2033.8,36.06]
[1617787140420,12.8289,2038.4,2035.3,67.3618]
[1617787140421,13.1272,2037.6,2035.3,67.3618]
[1617787140619,13.1272,2037.6,2035.3,70.2005]
[1617787140818,13.1272,2037.6,2035.4,5.93]
[1617787141231,13.1272,2037.6,2037.5,2.90695]
[1617787142020,13.1272,2037.6,2037.5,5.65515]
[1617787143121,12.8289,2038.4,2037.5,11.72515]
[1617787143322,12.8289,2038.4,2038.2,2.90695]
[1617787143523,12.8289,2038.4,2038.2,5.44995]
[1617787144522,12.8289,2038.4,2038.3,5.95]
[1617787146424,12.8995,2039.7,2038.3,5.95]
[1617787147226,12.8995,2039.7,2039.6,2.90695]
[1617787147426,12.8995,2039.7,2039.6,5.51725]
[1617787148226,12.8995,2039.7,2039.6,2.6103]
[1617787148424,12.8995,2039.7,2038.1,67.994]
[1617787149225,12.8995,2039.7,2039.6,2.90695]
[1617787149425,13.888,2039.7,2039.6,2.90695]
[1617787150026,12.8995,2039.7,2039.6,2.90695]
[1617787150628,0.05420498,2040.7,2039.6,5.93095]
[1617787150827,0.05420498,2040.7,2039.6,11.92095]
[1617787151027,0.05423737,2041.0,2039.6,11.92095]
[1617787151426,0.05424355,2041.1,2039.6,11.92095]
[1617787151628,0.05424355,2041.1,2040.4,2.90695]
[1617787152031,0.05424355,2041.1,2039.6,3.024]
[1617787152431,0.054224,2041.0,2039.6,3.024]
[1617787152631,0.054224,2041.0,2039.7,5.99]
[1617787153333,1.024924,2041.0,2039.7,5.99]
[1617787153535,0.05423725,2041.3,2040.6,2.90695]
[1617787155037,0.05423253,2041.4,2040.6,2.90695]
[1617787155437,13.27961266,2041.7,2040.7,5.89]
[1617787155438,0.05424468,2041.5,2040.7,5.89]
[1617787155839,0.05424499,2041.6,2040.6,6.09]
[1617787156038,12.90002211,2041.7,2040.6,6.09]
[1617787156437,12.8458,2041.7,2040.6,6.09]
[1617787157541,12.8458,2041.7,2041.3,2.90695]
[1617787157941,12.8458,2041.7,2040.5,75.0959]
[1617787158942,12.8458,2041.7,2040.6,6.04]
[1617787159642,12.8458,2041.7,2041.3,2.90695]
[1617787160047,12.8458,2041.7,2040.5,75.0959]
[1617787160245,14.9405,2041.7,2037.7,30.0]
[1617787160450,14.9405,2041.7,2039.2,69.8504]
[1617787160652,14.99466879,2041.7,2039.2,69.8504]
[1617787160845,14.99466879,2041.7,2039.3,6.05]
[1617787161046,0.05413801,2041.5,2039.3,6.05]
[1617787161648,0.05413801,2041.5,2039.6,2.90695]
[1617787161845,0.05407094,2041.4,2039.2,69.8504]
[1617787162247,0.05405579,2041.3,2039.2,69.8504]
[1617787162446,1.03445579,2041.3,2039.2,69.8504]
[1617787162647,0.05403339,2041.1,2039.2,69.8504]
[1617787162849,2.633,2041.1,2039.2,69.8504]
[1617787163549,2.633,2041.1,2039.8,2.90695]
[1617787163749,2.633,2041.1,2039.2,69.8504]
[1617787164552,2.68701819,2041.1,2039.2,69.8504]
[1617787164749,0.05401074,2041.0,2039.2,69.8504]
[1617787165649,0.05401074,2041.0,2039.5,2.90695]
[1617787166152,0.05401074,2041.0,2036.7,30.0]
[1617787166352,75.8426,2040.3,2036.7,60.1836]
[1617787166554,78.2475,2040.3,2036.7,60.1836]
[1617787166753,78.2475,2040.3,2036.8,6.09]
[1617787167059,13.1754,2040.2,2036.8,6.09]
[1617787167253,26.7863,2040.2,2036.8,6.09]
[1617787167457,26.84024036,2040.2,2036.8,6.09]
[1617787167656,26.84024036,2040.2,2037.8,2.90695]
[1617787167854,0.05393551,2040.1,2037.8,2.90695]
[1617787168053,1.03723551,2040.1,2037.8,2.90695]
[1617787168254,0.05392244,2040.0,2037.8,2.90695]
[1617787168454,0.05391612,2039.9,2037.8,2.90695]
[1617787169559,0.05390199,2040.0,2037.8,2.90695]
[1617787169757,2.90695,2037.9,2037.8,2.90695]
[1617787172357,2.0968,2038.1,2037.8,2.90695]
[1617787172558,0.9747,2039.5,2037.8,2.90695]
[1617787172759,0.05388472,2040.0,2037.8,2.90695]
[1617787173160,1.03723762,2040.1,2037.9,6.04]
[1617787173558,1.03723762,2040.1,2037.8,2.90695]
[1617787173759,1.03723762,2040.1,2038.1,2.90695]
[1617787175263,0.05393762,2040.1,2038.1,2.90695]
[1617787175463,26.84024638,2040.2,2038.1,2.90695]
[1617787175662,2.90695,2038.8,2038.5,2.90695]
[1617787177669,5.92355,2038.8,2038.5,2.90695]
[1617787177864,5.92355,2038.8,2035.6,30.0]
[1617787178066,5.92355,2038.8,2037.2,80.4429]
[1617787178866,5.92355,2038.8,2037.3,6.12]
[1617787179769,2.90695,2038.5,2038.2,2.90695]
[1617787179967,3.0166,2038.8,2038.2,2.90695]
[1617787180168,12.9988,2039.2,2038.2,2.90695]
[1617787181672,2.90695,2038.8,2038.6,2.90695]
[1617787182371,12.9988,2039.2,2038.6,2.90695]
[1617787182971,12.9988,2039.2,2038.7,6.1]
[1617787183572,13.1754,2040.2,2038.7,6.1]
[1617787183773,13.1754,2040.2,2040.1,2.90695]
[1617787183972,13.1754,2040.2,2040.1,5.84595]
[1617787185874,13.1754,2040.2,2040.1,11.72595]
[1617787187274,0.05400185,2041.6,2040.1,11.72595]
[1617787187679,0.05407355,2041.8,2040.8,58.1659]
[1617787187876,0.05407355,2041.8,2041.3,2.90695]
[1617787188075,0.05411036,2042.1,2041.3,5.34875]
[1617787188475,0.05416287,2042.2,2041.3,5.34875]
[1617787188877,0.05417206,2042.3,2041.4,5.89]
[1617787189277,13.34740742,2042.5,2041.4,5.89]
[1617787189479,13.2932,2042.5,2041.4,5.89]
[1617787189877,13.2932,2042.5,2042.0,2.90695]
[1617787191778,2.90695,2042.1,2042.0,2.90695]
[1617787193380,13.2932,2042.5,2042.0,32.90695]
[1617787193580,13.2932,2042.5,2042.0,115.31865]
[1617787193780,16.20015,2042.5,2042.4,2.90695]
[1617787195679,13.2932,2042.5,2042.4,2.90695]
[1617787196180,13.2932,2042.5,2042.4,32.90695]
[1617787196580,13.2932,2042.5,2042.4,38.80695]
[1617787197279,13.2932,2042.5,2042.4,32.90695]
[1617787198081,13.2932,2042.5,2042.4,2.90695]
[1617787199985,13.2932,2042.5,2042.4,32.90695]
[1617787200386,13.2932,2042.5,2042.4,2.90695]
[1617787200588,13.2932,2042.5,2042.4,8.83695]
[1617787203991,13.2932,2042.5,2042.4,2.90695]
[1617787205893,16.20015,2042.5,2042.4,2.90695]
[1617787208898,13.2932,2042.5,2042.4,2.90695]
[1617787209700,13.2932,2042.5,2042.4,8.77695]
[1617787210700,13.2932,2042.5,2042.4,75.50225]
[1617787212503,13.2932,2042.5,2042.4,105.50225]
[1617787212703,13.5159,2043.1,2042.4,105.50225]
[1617787212907,13.5159,2043.1,2042.4,41.63825]
[1617787214105,13.5159,2043.1,2043.0,2.90695]
[1617787214306,13.5159,2043.1,2043.0,35.25775]
[1617787214506,13.5159,2043.1,2043.0,41.38775]
[1617787215106,12.656,2044.6,2043.0,41.38775]
[1617787215307,12.656,2044.6,2044.1,64.871]
[1617787215508,12.656,2044.6,2044.1,67.5197]
[1617787215715,12.656,2044.6,2044.2,6.04]
[1617787216107,12.656,2044.6,2044.3,2.90695]
[1617787216510,12.656,2044.6,2044.4,6.11]
[1617787216907,12.656,2044.6,2043.5,87.115]
[1617787217107,12.656,2044.6,2043.5,57.115]
[1617787217508,15.6503,2044.6,2043.5,57.115]
[1617787217713,15.6503,2044.6,2037.7,5.12169848]
[1617787217913,96.276,2044.6,2042.6,72.071]
[1617787218109,96.276,2044.6,2043.6,2.90695]
[1617787218311,96.276,2044.6,2042.6,72.071]
[1617787219111,96.276,2044.6,2042.7,5.88]
[1617787220111,96.276,2044.6,2043.5,2.90695]
[1617787220311,15.6503,2044.6,2043.7,63.8256]
[1617787220513,12.656,2044.6,2043.7,63.8256]
[1617787221513,12.656,2044.6,2043.8,6.11]
[1617787221715,12.656,2044.6,2043.8,9.1272]
[1617787222013,12.656,2044.6,2044.1,2.90695]
[1617787223013,12.656,2044.6,2044.2,6.06]
[1617787223413,12.656,2044.6,2044.1,2.90695]
[1617787224013,12.656,2044.6,2044.5,2.90695]
[1617787224214,12.656,2044.6,2044.5,4.90235]
[1617787225115,12.656,2044.6,2044.5,10.97235]
[1617787225917,12.656,2044.6,2044.5,40.97235]
[1617787227319,12.656,2044.6,2044.5,10.97235]
[1617787227920,12.656,2044.6,2044.5,2.90695]
[1617787228121,15.56295,2044.6,2044.5,2.90695]
[1617787228725,15.56295,2044.6,2042.0,3.0611]
[1617787228923,80.49495,2044.6,2042.3,65.0619]
[1617787229523,80.49495,2044.6,2042.4,35.99]
[1617787230125,77.588,2044.6,2042.4,35.99]
[1617787232025,77.588,2044.6,2043.1,2.90695]
[1617787234125,2.90695,2043.2,2043.1,3.89185]
[1617787234326,5.32275,2043.2,2043.1,2.90695]
[1617787235130,5.32275,2043.2,2042.3,65.0619]
[1617787235330,5.32275,2043.2,2041.8,30.0]
[1617787235931,5.32275,2043.2,2041.9,5.9]
[1617787236131,5.32275,2043.2,2041.8,30.0]
[1617787236132,2.4158,2043.2,2042.4,2.90695]
[1617787237735,2.4158,2043.2,2041.8,30.0]
[1617787237931,2.4158,2043.2,2041.5,55.2401]
[1617787238133,2.4158,2043.2,2041.8,2.90695]
[1617787239331,13.4317,2043.4,2041.8,2.90695]
[1617787239833,13.4317,2043.4,2041.8,3.89935]
[1617787240031,13.4317,2043.4,2041.8,2.90695]
[1617787240231,13.4317,2043.4,2042.1,2.90695]
[1617787241434,13.4317,2043.4,2042.3,78.6568]
[1617787242133,2.90695,2042.4,2042.3,78.6568]
[1617787242333,5.74065,2042.4,2042.1,2.90695]
[1617787242733,5.74065,2042.4,2041.4,68.4017]
[1617787244134,2.8337,2042.4,2041.7,2.90695]
[1617787244635,13.5309,2042.9,2041.7,2.90695]
[1617787245235,13.5309,2042.9,2041.8,30.0]
[1617787245434,13.5309,2042.9,2041.8,37.8277]
[1617787245834,13.5309,2042.9,2042.3,77.4527]
[1617787246035,13.5309,2042.9,2042.3,109.6594]
[1617787246236,13.5309,2042.9,2042.8,2.90695]
[1617787246438,13.5309,2042.9,2042.8,34.94775]
[1617787247235,13.5309,2042.9,2042.8,41.02775]
[1617787253443,13.5309,2042.9,2042.8,11.02775]
[1617787253646,16.5352,2042.9,2039.2,3.0043]
[1617787253844,16.5352,2042.9,2036.4,1.1]
[1617787254047,16.5352,2042.9,2040.5,68.753]
[1617787254048,59.3297,2042.8,2040.5,68.753]
[1617787254246,59.3297,2042.8,2042.2,2.90695]
[1617787254647,16.5352,2042.9,2042.2,2.90695]
[1617787256248,2.90695,2042.3,2042.2,2.90695]
[1617787257047,13.5309,2042.9,2042.2,2.90695]
[1617787258249,16.43785,2042.9,2042.7,2.90695]
[1617787258450,13.5309,2042.9,2042.7,5.65405]
[1617787258652,13.5309,2042.9,2042.8,30.0]
[1617787259049,13.5309,2042.9,2042.8,35.88]
[1617787262754,10.2602,2042.9,2042.8,35.88]
[1617787262955,79.0672,2045.0,2043.3,80.309]
[1617787263155,13.64,2044.9,2043.4,30.0]
[1617787263357,13.64,2044.9,2043.4,36.03]
[1617787264259,13.64,2044.9,2044.8,2.90695]
[1617787265060,13.64,2044.9,2044.8,32.90695]
[1617787265261,13.64,2044.9,2044.8,35.23365]
[1617787265462,0.0545798,2046.1,2044.8,41.11365]
[1617787265663,0.8732768,2046.8,2045.5,72.6945]
[1617787265664,0.0546722,2046.8,2045.5,72.6945]
[1617787265861,12.9285722,2046.8,2045.5,75.2502]
[1617787266062,12.8739,2046.8,2045.6,36.16]
[1617787266261,12.8739,2046.8,2046.5,2.90695]
[1617787266461,12.8739,2046.8,2046.5,5.09005]
[1617787266662,12.8739,2046.8,2046.6,73.5929]
[1617787267863,12.8939,2046.8,2046.6,73.5929]
[1617787268262,2.90695,2046.7,2046.6,73.5929]
[1617787268862,2.90695,2046.7,2046.5,5.09005]
[1617787269063,2.90695,2046.7,2045.2,75.6187]
[1617787269265,4.82625,2046.7,2045.2,75.6187]
[1617787269666,34.82625,2046.7,2045.2,75.6187]
[1617787269867,4.82625,2046.7,2045.2,75.6187]
[1617787270465,4.82625,2046.7,2045.8,2.90695]
[1617787270466,1.9193,2046.7,2045.8,2.90695]
[1617787270666,12.8739,2046.8,2045.8,2.90695]
[1617787271067,12.8739,2046.8,2046.1,79.1084]
[1617787271468,12.8739,2046.8,2046.2,6.09]
[1617787271669,12.8739,2046.8,2046.2,9.0221]
[1617787272567,12.8739,2046.8,2046.7,2.90695]
[1617787272768,12.8739,2046.8,2046.7,5.52885]
[1617787273971,12.8739,2046.8,2046.7,2.90695]
[1617787274571,15.78085,2046.8,2046.7,2.90695]
[1617787275073,15.83589366,2046.8,2046.7,2.90695]
[1617787275472,15.78085,2046.8,2046.7,58.34585]
[1617787276072,15.78085,2046.8,2046.7,2.90695]
[1617787277073,15.78085,2046.8,2046.0,81.499]
[1617787277275,17.73005,2046.8,2046.0,81.499]
[1617787278678,2.90695,2046.1,2046.0,81.499]
[1617787278880,5.54515,2046.1,2046.0,81.499]
[1617787279279,2.6382,2046.1,2046.0,81.499]
[1617787279878,14.8231,2046.8,2046.0,81.499]
[1617787280080,12.8739,2046.8,2046.0,81.499]
[1617787280679,12.8739,2046.8,2046.6,2.90695]
[1617787282081,12.8739,2046.8,2046.0,84.2151]
[1617787282686,12.8739,2046.8,2046.7,2.90695]
[1617787283083,12.8739,2046.8,2046.7,5.02505]
[1617787283283,12.8739,2046.8,2046.7,2.1181]
[1617787283887,12.8739,2046.8,2043.1,2.1773]
[1617787284091,67.7379,2046.5,2044.2,78.4021]
[1617787284690,2.90695,2045.3,2045.2,2.90695]
[1617787284885,5.64085,2045.3,2045.2,2.90695]
[1617787285689,5.64085,2045.3,2044.2,78.4021]
[1617787285887,5.64085,2045.3,2043.3,30.0]
[1617787286096,5.64085,2045.3,2043.3,109.3488]
[1617787286687,2.7339,2045.3,2043.4,6.09]
[1617787287388,15.4589,2045.3,2043.4,6.09]
[1617787288588,2.90695,2044.6,2044.4,2.90695]
[1617787288788,5.66215,2044.6,2044.4,2.90695]
[1617787291793,5.66215,2044.6,2042.6,30.0]
[1617787291993,5.66215,2044.6,2042.6,66.2897]
[1617787292194,5.66215,2044.6,2038.0,6.9608]
[1617787292393,74.5006,2044.0,2040.8,70.7891]
[1617787292594,76.9609,2044.0,2040.8,70.7891]
[1617787292795,2.90695,2042.6,2042.5,2.88695]
[1617787292996,5.51655,2042.6,2042.5,2.88695]
[1617787293194,5.51655,2042.6,2040.9,36.16]
[1617787293395,5.51655,2042.6,2040.9,30.0]
[1617787293594,5.51655,2042.6,2040.8,70.7891]
[1617787293794,5.51655,2042.6,2037.2,8.57923527]
[1617787293795,5.51655,2042.6,2039.0,30.0]
[1617787293996,80.00485,2042.6,2040.0,80.4317]
[1617787294196,80.00485,2042.6,2040.9,5.99]
[1617787294396,80.00485,2042.6,2040.0,110.4317]
[1617787294796,13.276,2042.5,2041.7,2.90695]
[1617787296800,13.276,2042.5,2040.5,30.0]
[1617787296801,13.276,2042.5,2042.4,2.90695]
[1617787298201,13.276,2042.5,2042.4,8.80695]
[1617787298401,13.276,2042.5,2042.4,10.68385]
[1617787298600,12.8574,2043.7,2042.8,55.4133]
[1617787298805,12.8574,2043.7,2043.6,2.90695]
[1617787302004,12.8574,2043.7,2043.6,9.03695]
[1617787303808,12.8574,2043.7,2043.6,39.03695]
[1617787305011,12.8574,2043.7,2043.6,100.44575]
[1617787305610,12.7658,2044.5,2043.6,100.44575]
[1617787306611,12.7658,2044.5,2043.6,70.44575]
[1617787306812,2.90695,2043.7,2043.6,64.31575]
[1617787307012,5.34225,2043.7,2042.6,30.0]
[1617787307715,5.34225,2043.7,2042.7,5.91]
[1617787307912,5.34225,2043.7,2042.8,30.0]
[1617787308312,5.34225,2043.7,2042.9,6.16]
[1617787308514,5.34225,2043.7,2042.9,36.16]
[1617787308711,5.34225,2043.7,2043.6,2.90695]
[1617787309112,5.34225,2043.7,2043.6,67.02255]
[1617787309713,5.34225,2043.7,2043.6,64.1156]
[1617787309915,5.34225,2043.7,2042.3,94.1627]
[1617787310314,5.34225,2043.7,2042.3,64.1627]
[1617787310915,2.4353,2043.7,2043.0,2.90695]
[1617787311916,2.0,2043.8,2043.0,2.90695]
[1617787312817,2.90695,2043.1,2043.0,2.90695]
[1617787313418,2.90695,2043.1,2042.3,64.1627]
[1617787314115,2.90695,2043.1,2042.3,94.1627]
[1617787314519,2.90695,2043.1,2042.4,6.1]
[1617787314719,2.90695,2043.1,2042.4,8.7727]
[1617787314919,2.90695,2043.1,2043.0,2.90695]
[1617787315119,2.90695,2043.1,2043.0,5.67685]
[1617787316719,13.2036,2043.9,2043.0,5.67685]
[1617787316920,16.11055,2043.9,2043.8,2.90695]
[1617787317121,16.11055,2043.9,2043.8,5.07335]
[1617787317722,13.2036,2043.9,2043.8,5.07335]
[1617787318822,14.1715,2043.9,2043.8,5.07335]
[1617787319022,13.2036,2043.9,2043.8,5.07335]
[1617787320623,13.2036,2043.9,2043.8,2.90695]
[1617787321426,13.2036,2043.9,2043.1,69.8719]
[1617787321625,13.2036,2043.9,2042.5,30.0]
[1617787321827,13.2036,2043.9,2042.1,30.0]
[1617787322025,13.2036,2043.9,2042.3,78.5641]
[1617787322226,13.2036,2043.9,2042.4,30.0]
[1617787322527,13.2036,2043.9,2042.4,35.97]
[1617787322927,2.90695,2042.9,2042.6,2.90695]
[1617787323125,3.0093,2042.9,2042.6,2.90695]
[1617787324126,1.9629,2043.4,2042.6,2.90695]
[1617787324927,1.9629,2043.4,2043.1,2.90695]
[1617787325530,1.9629,2043.4,2042.3,78.5641]
[1617787325732,1.9629,2043.4,2039.6,0.986]
[1617787325929,59.0936,2043.2,2041.3,30.0]
[1617787326532,59.0936,2043.2,2041.4,6.04]
[1617787326932,59.0936,2043.2,2042.4,2.90695]
[1617787329036,2.90695,2042.5,2042.4,2.90695]
[1617787329235,5.68625,2042.5,2042.4,2.90695]
[1617787331138,5.68625,2042.5,2041.3,30.0]
[1617787332338,5.68625,2042.5,2041.4,5.9]
[1617787332539,5.68625,2042.5,2041.4,35.9]
[1617787332940,2.7793,2042.5,2042.1,2.90695]
[1617787334341,12.9936,2043.1,2042.1,2.90695]
[1617787334542,13.9817,2043.1,2042.1,2.90695]
[1617787335046,2.90695,2042.2,2042.1,2.90695]
[1617787337245,2.90695,2042.2,2040.1,30.0]
[1617787337446,63.2697,2041.7,2040.1,30.0]
[1617787337649,66.173,2041.7,2040.1,30.9857]
[1617787337845,66.173,2041.7,2040.2,6.08]
[1617787338045,66.173,2041.7,2040.3,30.0]
[1617787338445,66.173,2041.7,2040.4,6.07]
[1617787338846,66.173,2041.7,2040.4,36.07]
[1617787339047,66.173,2041.7,2041.4,2.90695]
[1617787340047,66.173,2041.7,2040.4,30.0]
[1617787341047,66.173,2041.7,2040.9,2.90695]
[1617787341646,2.9033,2041.7,2040.9,2.90695]
[1617787341848,13.6162,2042.1,2040.9,2.90695]
[1617787343047,13.6162,2042.1,2041.2,2.90695]
[1617787345054,2.90695,2041.3,2041.2,2.90695]
[1617787351260,2.90695,2041.3,2040.1,66.2698]
[1617787351660,2.90695,2041.3,2039.1,30.0]
[1617787351860,73.8721,2040.8,2039.1,30.0]
[1617787352059,76.6418,2040.8,2039.1,30.0]
[1617787352459,76.6418,2040.8,2039.2,5.9]
[1617787352660,76.6418,2040.8,2039.3,30.0]
[1617787353059,76.6418,2040.8,2039.4,5.88]
[1617787353259,76.6418,2040.8,2039.4,35.88]
[1617787353659,76.6418,2040.8,2039.4,30.0]
[1617787353860,76.6418,2040.8,2039.5,5.99]
[1617787354059,76.6418,2040.8,2039.5,35.99]
[1617787354660,76.6418,2040.8,2039.5,30.0]
[1617787354861,76.6418,2040.8,2039.6,5.98]
[1617787355262,76.6418,2040.8,2040.3,2.90695]
[1617787355560,76.6418,2040.8,2039.5,30.0]
[1617787356361,76.6418,2040.8,2039.6,5.89]
[1617787356760,76.6418,2040.8,2039.0,30.0]
[1617787357160,76.6418,2040.8,2040.2,2.90695]
[1617787357961,0.9758,2040.9,2040.2,2.90695]
[1617787358161,12.9599,2041.2,2040.3,66.9274]
[1617787358563,12.9599,2041.2,2040.3,102.9974]
[1617787359161,12.9599,2041.2,2041.1,2.90695]
[1617787359361,12.9599,2041.2,2041.1,5.46935]
[1617787361063,12.9599,2041.2,2041.1,2.90695]
[1617787362065,64.5366,2041.1,2039.7,30.0]
[1617787362264,15.7573,2041.2,2039.5,30.0]
[1617787362467,78.2273,2040.2,2039.5,30.0]
[1617787362662,80.8174,2040.2,2039.5,30.0]
[1617787363064,80.8174,2040.2,2039.6,5.97]
[1617787363265,80.8174,2040.2,2040.1,2.90695]
[1617787364666,2.5901,2040.2,2040.1,2.90695]
[1617787365568,2.90695,2040.4,2040.1,2.90695]
[1617787365770,71.5161,2040.6,2040.1,2.90695]
[1617787365967,71.5161,2040.6,2040.1,32.90695]
[1617787366167,71.5161,2040.6,2040.2,6.05]
[1617787366367,71.5161,2040.6,2040.3,30.0]
[1617787366575,71.5161,2040.6,2040.4,6.13]
[1617787366767,12.9599,2041.2,2040.4,9.0494]
[1617787367367,15.86685,2041.2,2041.1,2.90695]
[1617787369270,15.86685,2041.2,2040.4,2.90695]
[1617787369471,18.51315,2041.2,2040.4,2.90695]
[1617787369671,74.8533,2040.8,2040.4,2.90695]
[1617787371271,74.8533,2040.8,2040.7,2.90695]
[1617787371974,12.9599,2041.2,2040.7,2.90695]
[1617787372574,12.9599,2041.2,2040.7,32.90695]
[1617787372774,12.9599,2041.2,2040.8,6.05]
[1617787373474,12.9599,2041.2,2041.1,2.90695]
[1617787373674,12.9599,2041.2,2041.1,11.77465]
[1617787373873,12.9599,2041.2,2041.1,41.77465]
[1617787374474,12.8569,2041.8,2041.1,41.77465]
[1617787374875,12.8569,2041.8,2041.3,68.4029]
[1617787375078,12.8569,2041.8,2041.4,30.0]
[1617787375276,12.8569,2041.8,2041.5,5.87]
[1617787375475,12.8569,2041.8,2041.7,2.90695]
[1617787375676,12.8569,2041.8,2041.7,5.25835]
[1617787376877,12.8569,2041.8,2041.7,11.17835]
[1617787377475,12.8569,2041.8,2041.7,5.25835]
[1617787377684,12.8569,2041.8,2041.7,2.90695]
[1617787378680,12.8569,2041.8,2041.7,8.80695]
[1617787381186,12.8569,2041.8,2041.7,38.80695]
[1617787381983,12.8569,2041.8,2041.7,8.80695]
[1617787382187,12.8569,2041.8,2041.7,2.90695]
[1617787383883,12.8569,2041.8,2041.7,35.40995]
[1617787384285,12.8569,2041.8,2041.7,41.32995]
[1617787384484,66.8259,2042.8,2041.7,41.32995]
[1617787384885,13.8602,2042.9,2041.7,41.32995]
[1617787385489,13.8602,2042.9,2042.1,73.6787]
[1617787385686,13.8602,2042.9,2042.8,2.90695]
[1617787385887,13.8602,2042.9,2042.8,4.80735]
[1617787391590,13.8602,2042.9,2042.8,10.94735]
[1617787391791,13.8602,2042.9,2042.8,4.80735]
[1617787391991,13.8602,2042.9,2042.8,34.80735]
[1617787392191,2.90695,2043.5,2042.9,65.7541]
[1617787392391,2.90695,2043.5,2043.0,30.0]
[1617787392590,13.6387,2043.7,2043.0,30.0]
[1617787392790,13.6387,2043.7,2043.1,5.91]
[1617787392990,13.6387,2043.7,2043.2,30.0]
[1617787393390,13.6387,2043.7,2043.3,6.0]
[1617787393593,13.6387,2043.7,2043.6,2.90695]
[1617787393794,13.6387,2043.7,2043.6,32.90695]
[1617787393992,13.6387,2043.7,2043.6,38.85695]
[1617787395593,13.6387,2043.7,2043.6,118.77985]
[1617787397301,13.6387,2043.7,2043.6,38.85695]
[1617787397517,13.6387,2043.7,2043.6,2.90695]
[1617787397710,66.4545,2043.6,2043.0,2.90695]
[1617787399703,2.90695,2043.1,2043.0,2.90695]
[1617787399903,5.53995,2043.1,2043.0,2.90695]
[1617787401305,2.90695,2043.1,2043.0,2.90695]
[1617787403206,16.0611,2043.7,2043.0,2.90695]
[1617787403406,13.6387,2043.7,2043.0,2.90695]
[1617787403607,13.6387,2043.7,2043.3,81.8737]
[1617787403809,2.90695,2043.6,2043.4,2.90695]
[1617787404008,13.6387,2043.7,2043.4,2.90695]
[1617787404809,13.6387,2043.7,2043.5,30.0]
[1617787405010,13.6387,2043.7,2043.5,35.89]
[1617787406609,59.3283,2044.3,2043.5,35.89]
[1617787407812,62.23525,2044.3,2044.2,2.90695]
[1617787408211,2.90695,2044.3,2044.2,2.90695]
[1617787410411,13.5569,2044.6,2044.2,2.90695]
[1617787412013,13.5569,2044.6,2044.5,2.90695]
[1617787414014,16.46385,2044.6,2044.5,2.90695]
[1617787414416,13.5569,2044.6,2044.5,2.90695]
[1617787416117,13.5569,2044.6,2043.3,1.8995]
[1617787416316,78.2619,2044.4,2043.4,75.5045]
[1617787416515,78.2619,2044.4,2043.5,30.0]
[1617787416715,78.2619,2044.4,2043.5,36.0]
[1617787417719,13.5569,2044.6,2043.5,36.0]
[1617787417917,13.5569,2044.6,2044.5,2.90695]
[1617787420119,63.9081,2044.5,2043.1,30.0]
[1617787420719,63.9081,2044.5,2043.2,6.06]
[1617787420918,63.9081,2044.5,2043.3,30.0]
[1617787421319,63.9081,2044.5,2043.4,5.92]
[1617787421520,63.9081,2044.5,2043.5,30.0]
[1617787421917,63.9081,2044.5,2044.4,2.90695]
[1617787422121,15.6381,2044.6,2044.4,2.90695]
[1617787422318,15.6381,2044.6,2043.5,72.5827]
[1617787422718,15.6381,2044.6,2043.5,102.5827]
[1617787422918,13.5569,2044.6,2043.6,5.9]
[1617787423118,13.5569,2044.6,2044.2,72.5259]
[1617787423520,13.5569,2044.6,2044.3,6.02]
[1617787423919,13.5569,2044.6,2044.5,2.90695]
[1617787424520,2.90695,2044.7,2044.5,32.90695]
[1617787424722,12.6805,2045.5,2044.5,32.90695]
[1617787424921,12.6805,2045.5,2044.5,38.96695]
[1617787425122,12.6805,2045.5,2045.4,65.9509]
[1617787425324,12.6805,2045.5,2045.4,68.5033]
[1617787426021,15.58745,2045.5,2045.4,71.41025]
[1617787427829,12.6805,2045.5,2045.4,71.41025]
[1617787428025,12.6805,2045.5,2045.4,35.45935]
[1617787428826,12.6805,2045.5,2045.4,41.47935]
[1617787431026,12.6805,2045.5,2045.4,11.47935]
[1617787431226,12.6805,2045.5,2045.4,2.90695]
[1617787431728,12.6805,2045.5,2045.4,9.04695]
[1617787432129,12.6805,2045.5,2045.4,2.90695]
[1617787433129,14.6587,2045.5,2045.4,2.90695]
[1617787433930,14.6587,2045.5,2045.4,8.85695]
[1617787434131,12.6805,2045.5,2045.4,8.85695]
[1617787434331,12.6805,2045.5,2045.4,2.90695]
[1617787437931,15.58745,2045.5,2045.4,2.90695]
[1617787438735,15.58745,2045.5,2044.8,57.777]
[1617787439733,15.58745,2045.5,2044.2,30.0]